Cogmind - Beta 15 @@@ ROGUE MODE // 2025.09.22 @ 16:09:11 Player: Blue Result: Destroyed by Y-54 Guardian with Gatling Laser Performance ------------- Evolutions (3) 1500 Regions Visited (8) 1600 Robots Destroyed (65) 325 Value Destroyed (1649) 1649 Prototype IDs (13) 260 Alien Tech Used (0) 0 Bonus (42) 42 TOTAL SCORE: 5376 Bonus ------- Follower Combat Kills 42 Cogmind --------- Core Integrity 0/700 Matter 280/300 Energy 98/100 System Corruption 11% Temperature Cool (12) Movement Core (50) Location -7/Factory Parts ------- > --- POWER (1) -------- (None) > --- PROPULSION (3) --- Faulty Improved Cesium-ion Thruster > --- UTILITY (6) ------ Advanced Visual Processing Unit Targeting Computer Hacking Suite > --- WEAPON (3) ------- (None) > --- INVENTORY (5) ---- Light Nuclear Core Improved Heat Sink Improved Heat Sink Kinecellerator Beam Rifle Peak State ------------ > --- POWER ------------ Micro Nuclear Core > --- PROPULSION ------- Armored Treads Armored Treads Armored Wheel > --- UTILITY ---------- Improved Heat Sink Huge Storage Unit Advanced Visual Processing Unit Targeting Computer Hardened Medium Armor Plating Hacking Suite > --- WEAPON ----------- Heavy Particle Cannon Gauss Rifle Assault Cannon > --- INVENTORY -------- Light Nuclear Core Light Nuclear Core Light Nuclear Core Light Treads Wheel Improved Heat Sink Improved Heat Sink Medium Storage Unit Matter Filter Particle Charger Kinecellerator Light Armor Plating Hardened Light Armor Plating Hardened Medium Armor Plating Improved Light Armor Plating Improved Medium Armor Plating High-powered Tractor Beam Beam Rifle Particle Cannon High-powered Shotgun Advanced Assault Cannon Heavy Hammer Heavy Flail [Rating: 42] Favorites ----------- Power Cooled Ion Engine Engine Cooled Ion Engine Power Core Micro Nuclear Core Propulsion Wheel Treads Light Treads Wheel Wheel Hover Unit Improved Hover Unit Flight Unit Cesium-ion Thruster Utility Heat Sink Device Heat Sink Storage Huge Storage Unit Processor Advanced Visual Processing Unit Hackware Hacking Suite Protection Core Shielding Weapon Advanced Beam Cannon Energy Gun Medium Laser Energy Cannon Advanced Beam Cannon Ballistic Gun High-powered Shotgun Ballistic Cannon Assault Cannon Launcher Grenade Launcher Impact Weapon Heavy Flail Special Melee Weapon Datajack Build | -11 -10 -10 -9 -9 -9 -8 -8 -7 ------- Run | Yrd Mat Min Mat Min Exi Min Mat Fac Slots Evolved 6 | . . . 2 . . . 2 2 Power . | . . . . . . . . . Propulsion 1 | . . . . . . . . 1 Utility 4 | . . . 2 . . . 1 1 Weapon 1 | . . . . . . . 1 . Parts Attached 76 | 7 3 8 19 . . 1 16 22 Power 10 | 1 1 1 3 . . . . 4 Engine 8 | 1 1 1 3 . . . . 2 Core 2 | . . . . . . . . 2 Reactor . | . . . . . . . . . Propulsion 17 | 2 . 4 2 . . . 3 6 Treads 3 | . . . . . . . 1 2 Leg . | . . . . . . . . . Wheel 11 | 2 . 4 2 . . . . 3 Hover 1 | . . . . . . . 1 . Flight 2 | . . . . . . . 1 1 Utility 27 | 1 2 1 6 . . 1 8 8 Device 6 | . . . 3 . . . 1 2 Storage 6 | 1 1 1 . . . . 2 1 Processor 2 | . . . . . . . 1 1 Hackware 1 | . . . . . . . 1 . Protection 12 | . 1 . 3 . . 1 3 4 Artifact . | . . . . . . . . . Weapon 22 | 3 . 2 8 . . . 5 4 Energy Gun 5 | 2 . . 1 . . . 1 1 Energy Cannon 3 | . . . 2 . . . 1 . Ballistic Gun 8 | 1 . 1 4 . . . 1 1 Ballistic Cannon 2 | . . . . . . . 1 1 Launcher 1 | . . 1 . . . . . . Special Weapon . | . . . . . . . . . Impact Weapon 2 | . . . . . . . 1 1 Slashing Weapon . | . . . . . . . . . Piercing Weapon . | . . . . . . . . . Special Melee Weapon 1 | . . . 1 . . . . . Unidentified Prototypes 3 | . . . 1 . . . . 2 Corrupted Parts 1 | . . . . . . . 1 . System Corruption 3 | . . . . . . . 3 . Parts Lost 41 | . . 3 10 . . . 8 20 Power 6 | . . 1 . . . . 1 4 Propulsion 12 | . . 2 3 . . . 1 6 Utility 11 | . . . 2 . . . 5 4 Weapon 12 | . . . 5 . . . 1 6 Highest Loss Streak 18 | . . 1 5 . . . 7 18 To Critical Strikes . | . . . . . . . . . Average Backups 15 | . 7 10 14 22 22 22 12 12 Power 3 | . 1 2 3 6 6 6 3 . Propulsion 2 | . . 1 2 4 4 4 1 . Utility 6 | . 4 5 5 7 7 7 4 7 Weapon 3 | . . 1 2 4 4 4 2 4 Tool/Special . | . . . . . . . . . Unused Backups 30 | . . . 3 . . . 17 10 Power 9 | . . . 3 . . . 4 2 Propulsion 4 | . . . . . . . 4 . Utility 16 | . . . . . . . 9 7 Weapon 1 | . . . . . . . . 1 Tool/Special . | . . . . . . . . . Average Slot Usage (%) 90 | . 95 91 95 100 100 100 63 87 Engine 8 | . 14 9 11 11 11 11 4 4 Treads 2 | . . . . . . . 2 8 Wheel 16 | . 28 24 20 22 22 22 8 5 Device 10 | . . . 11 22 22 22 9 3 Storage 9 | . 14 14 11 11 11 11 6 6 Processor 3 | . . . . . . . 4 12 Hackware 2 | . . . . . . . 2 7 Protection 12 | . 9 14 19 11 11 11 6 11 Energy Gun 3 | . 14 14 4 . . . 3 . Energy Cannon 8 | . . . 3 22 22 22 9 3 Ballistic Gun 5 | . 14 7 9 . . . 2 6 Ballistic Cannon 2 | . . . . . . . 1 9 Launcher 1 | . . 6 2 . . . . . Peak Build Rating 42 | 6 8 8 18 18 18 20 25 42 Average Rating 18 | 4 7 7 12 18 18 19 16 31 On Entrance 13 | . 6 8 8 18 18 18 20 21 Naked Turns 20 | . . . . . . . 20 . Heaviest Build 186 | 13 19 91 100 99 99 106 186 119 Greatest Support 26 | 26 26 26 20 20 20 20 20 20 Greatest Overweight (x) 9 | . . 8 9 4 4 5 9 9 Average Overweight (x) 3 | . . 2 4 4 4 4 1 5 Largest Inventory Capacity 25 | 8 10 25 25 25 25 25 25 25 Average Capacity 21 | 7 9 21 24 25 25 25 14 20 Most Carried 25 | 1 10 14 22 22 22 22 25 25 Average Carried 15 | . 7 10 14 22 22 22 12 12 Final Capacity 25 | 8 10 25 25 25 25 25 10 5 Final Carried 22 | 1 10 14 22 22 22 22 6 5 Class Distribution -------------------- 64% | Mutant 13% | Gunner 11% | Tank 9% | Scavenger-Mutant Dominant Class ---------------- Mutant | -10/Materials Mutant | -10/Mines Scavenger-Mutant | -9/Materials Mutant | -9/Mines Mutant | -9/Exiles Mutant | -8/Mines Mutant | -8/Materials Gunner | -7/Factory Resources | -11 -10 -10 -9 -9 -9 -8 -8 -7 ----------- Run | Yrd Mat Min Mat Min Exi Min Mat Fac Matter Collected 2241 | 213 166 321 545 . . . 267 729 Remotely . | . . . . . . . . . Salvage Created 1842 | . 116 122 651 46 . . 277 630 Parts 133 | . 7 14 52 3 . . 16 41 Haulers Intercepted 4 | . 1 . 3 . . . . . Recyclers Shooed 6 | . . . 2 . . . 2 2 Parts Field Recycled . | . . . . . . . . . Retrieved Matter . | . . . . . . . . . Parts Self-Destructed . | . . . . . . . . . Prevented . | . . . . . . . . . Kills | -11 -10 -10 -9 -9 -9 -8 -8 -7 ------- Run | Yrd Mat Min Mat Min Exi Min Mat Fac Combat Hostiles Destroyed 59 | . 1 12 17 3 . . 8 18 Melee 1 | . . . . . . . 1 . Guns 22 | . 1 2 13 . . . 4 2 Cannons 20 | . . . . 3 . . 3 14 AOE 14 | . . 10 4 . . . . . Classes Destroyed 13 | . 3 4 4 . . . . 2 Worker 1 | . . . 1 . . . . . Builder 3 | . . 1 . . . . . 2 Tunneler 2 | . . 1 1 . . . . . Hauler 4 | . 1 . 3 . . . . . Recycler 1 | . . . 1 . . . . . Operator 1 | . . . 1 . . . . . Watcher 1 | . 1 . . . . . . . Swarmer 28 | . . 4 12 3 . . 3 6 Grunt 12 | . 1 1 1 . . . 3 6 Sentry 7 | . . . 4 . . . 2 1 Specialist 2 | . . . . . . . . 2 Programmer 3 | . . . . . . . . 3 Assembled 7 | . . 7 . . . . . . Best Kill Streak 5 | . 1 3 5 3 . . 4 3 Combat Bots Only 4 | . 1 3 4 3 . . 4 3 Max Kills in Single Turn 3 | . 1 2 3 1 . . 1 1 Gunslinging . | . . . . . . . . . Exploded 2 | . . 2 2 . . . . . Melee 1 | . . . . . . . 1 . Uniques/NPCs Destroyed . | . . . . . . . . . Combat | -11 -10 -10 -9 -9 -9 -8 -8 -7 -------- Run | Yrd Mat Min Mat Min Exi Min Mat Fac Hostile Shots Fired 658 | . 9 28 89 12 . . 104 416 Missed 198 | . 4 7 23 2 . . 28 134 Hits 460 | . 5 21 66 10 . . 76 282 Melee 5 | . . 4 . . . . 1 . Projectile 455 | . 5 17 66 10 . . 75 282 Critical Strikes 19 | . . 1 5 . . . 3 10 Actively Blocked 1 | . . . 1 . . . . . Damage Taken 6102 | . 73 350 805 69 . . 1188 3617 Core 1200 | . 21 77 84 8 . . 303 707 Absorbed by Shields . | . . . . . . . . . Redirected to Shielding 37 | . 5 15 16 1 . . . . Core Remaining (%) 70 | 100 . 60 . . . 77 44 . Volleys Fired 189 | . 12 19 76 6 . . 28 48 Largest 3 | . 2 2 2 2 . . 3 3 Hottest 192 | . 70 80 136 136 . . 192 143 Shots Fired 370 | . 24 38 129 12 . . 53 114 Gun 217 | . 24 25 106 . . . 26 36 Cannon 131 | . . . 14 12 . . 27 78 Launcher 22 | . . 13 9 . . . . . Special . | . . . . . . . . . Kinetic 212 | . 12 6 80 . . . 23 91 Thermal 136 | . 12 19 40 12 . . 30 23 Explosive 22 | . . 13 9 . . . . . Electromagnetic . | . . . . . . . . . Robot Hit Streak 16 | . 7 4 16 5 . . 6 14 Robot Miss Streak 8 | . 2 2 5 1 . . 8 7 Penetration Max . | . . . . . . . . . Secondary Targets 1 | . . . 1 . . . . . Max Gunslinging Chain 1 | . . . 1 . . . . . Shots Hit Robots 227 | . 18 14 87 9 . . 35 64 Core Hits 105 | . 6 20 34 3 . . 13 29 Critical Kills 2 | . . . . . . . 1 1 Critical Parts Destroyed 3 | . . . . . . . 1 2 Critical Strikes 13 | . 1 1 4 . . . 2 5 Burn 6 | . 1 1 4 . . . . . Meltdown 1 | . . . . . . . . 1 Blast 2 | . . . . . . . . 2 Smash 4 | . . . . . . . 2 2 Melee Attacks 11 | . . . 1 . . . 3 7 Impact 10 | . . . . . . . 3 7 Slashing . | . . . . . . . . . Piercing . | . . . . . . . . . Sneak Attacks 1 | . . . 1 . . . . . Combat Hostiles . | . . . . . . . . . Follow-up Attacks . | . . . . . . . . . Damage Inflicted 4846 | . 182 629 1432 183 . . 790 1630 Guns 1895 | . 182 123 955 . . . 250 385 Cannons 1963 | . . . 223 183 . . 417 1140 Explosions 760 | . . 506 254 . . . . . Melee 195 | . . . . . . . 90 105 Ramming 33 | . . . . . . . 33 . Kinetic 2126 | . 83 36 676 . . . 212 1119 Thermal 1732 | . 99 87 502 183 . . 455 406 Explosive 760 | . . 506 254 . . . . . Electromagnetic . | . . . . . . . . . Impact 195 | . . . . . . . 90 105 Slashing . | . . . . . . . . . Piercing . | . . . . . . . . . Highest Corruption 11 | . . 1 2 2 2 2 3 11 Average Corruption 2 | . . 1 2 2 2 2 3 5 Corruption Purged . | . . . . . . . . . Corruption Blocked . | . . . . . . . . . Effects 44 | . . 2 3 3 15 3 2 16 Message Errors 8 | . . . . 1 1 . 1 5 Matter Fused 14 | . . 1 2 1 5 1 . 4 Heat Flow Errors 6 | . . . . 1 2 . . 3 Energy Discharges 7 | . . 1 . . 3 . . 3 Parts Rejected 1 | . . . . . . . . 1 Data Loss (minor) 3 | . . . 1 . 1 . 1 . Data Loss (major) 4 | . . . . . 2 2 . . Alerts 1 | . . . . . 1 . . . Overload Shots . | . . . . . . . . . Overflow Damage 141 | . . 10 12 1 . . 30 88 Projectiles 42 | . . . 12 1 . . 10 19 Explosions 10 | . . 10 . . . . . . Melee 89 | . . . . . . . 20 69 Knockbacks 13 | . . . . . . . 2 11 Impact 2 | . . . . . . . . 2 Kinetic 11 | . . . . . . . 2 9 Secondary . | . . . . . . . . . Self-Inflicted Damage 146 | . . 51 80 . . . 15 . Shots 6 | . . 2 4 . . . . . Rammed 6 | . . . . . . . 6 . Targets Rammed 6 | . . . . . . . 6 . Kicked . | . . . . . . . . . Crushed . | . . . . . . . . . Highest Temperature 355 | . 146 81 27 133 152 . 355 223 Average Temperature 63 | . 55 22 9 119 70 . 143 28 Received Heat Transfer 1290 | . 42 45 168 . . . 612 423 Effects 2 | . . . . . . . 2 . Energy Bleed 1 | . . . . . . . 1 . Interference 1 | . . . . . . . 1 . Siege Activations . | . . . . . . . . . Martial Activations . | . . . . . . . . . Shielding Activations . | . . . . . . . . . Robots Disrupted . | . . . . . . . . . Combat Hostiles . | . . . . . . . . . Robots Corrupted 1 | . . . . . . . . 1 Combat Hostiles 1 | . . . . . . . . 1 Parts Fried 2 | . . . . . . . 1 1 Impact Corruptions 3 | . . . . . . . 1 2 Robots Melted 1 | . . . . . . . . 1 Combat Hostiles 1 | . . . . . . . . 1 Parts Melted 6 | . 1 . . . . . 1 4 Heat Transferred 3830 | . 370 333 1443 333 . . 777 574 Parts Sabotaged . | . . . . . . . . . Parts Stolen . | . . . . . . . . . Parts Stripped . | . . . . . . . . . Power Chain Reactions . | . . . . . . . . . Alert | -11 -10 -10 -9 -9 -9 -8 -8 -7 ------- Run | Yrd Mat Min Mat Min Exi Min Mat Fac Maximum Alert Level 1 | . . . . . . . 1 . Low Security (%) 98 | 100 100 100 100 100 . 100 86 100 Level 1 1 | . . . . . . . 13 . Level 2 . | . . . . . . . . . Level 3 . | . . . . . . . . . Level 4 . | . . . . . . . . . Level 5 . | . . . . . . . . . High Security . | . . . . . . . . . Max Security . | . . . . . . . . . Peak Influence 214 | . 59 187 168 70 . . 214 187 Initial 89 | . . 22 . 53 . . . 89 Average 58 | . 15 56 99 33 . . 82 48 Influence Increases 1994 | . 121 306 581 70 . . 464 452 Destroy 0b10 Robot/C 1080 | . 20 140 340 60 . . 160 360 Destroy 0b10 Robot/NC 65 | . 10 10 35 . . . . 10 Destroy Leader 220 | . 14 30 76 10 . . 50 40 Allied During Kill 16 | . . 16 . . . . . . Successful Hack 50 | . 17 . 28 . . . 5 . Disable Machine 45 | . . 15 15 . . . . 15 Destroy Structure 173 | . . 95 57 . . . 9 12 Lose Combat Pursuer 345 | . 60 . 30 . . . 240 15 Influence Decreases 1978 | . 62 365 444 157 50 . 266 634 Entered New Map 280 | . . 37 . 84 50 . . 109 Time Decay 1231 | . 62 241 344 73 . . 186 325 Lost Part 407 | . . 27 100 . . . 80 200 Lost Ally 60 | . . 60 . . . . . . Squads Dispatched 9 | . 1 . 1 . . . 4 3 Investigation 2 | . 1 . . . . . 1 . Extermination 3 | . . . . . . . . 3 Reinforcement 4 | . . . 1 . . . 3 . Assault . | . . . . . . . . . Garrison . | . . . . . . . . . Intercept . | . . . . . . . . . Searches Triggered . | . . . . . . . . . Construction Impeded . | . . . . . . . . . Haulers Reinforced . | . . . . . . . . . Active Scanning Responses . | . . . . . . . . . Cargo Convoy Interrupts 1 | . . . . . . . . 1 Stealth | -11 -10 -10 -9 -9 -9 -8 -8 -7 --------- Run | Yrd Mat Min Mat Min Exi Min Mat Fac Distress Signals 7 | . 1 . 2 . . . 3 1 Communications Jammed . | . . . . . . . . . Distress Signals . | . . . . . . . . . Times Spotted 110 | . 7 16 23 3 . . 26 35 Peak Tracking Total 14 | . 4 3 5 3 . . 14 11 Tactical Retreats 14 | . 2 1 2 . . . 8 1 Traps | -11 -10 -10 -9 -9 -9 -8 -8 -7 ------- Run | Yrd Mat Min Mat Min Exi Min Mat Fac Traps Triggered 3 | . 1 . 1 . . . 1 . Indirectly . | . . . . . . . . . Trap Hack Attempts . | . . . . . . . . . Triggered . | . . . . . . . . . Disarmed . | . . . . . . . . . Reprogrammed . | . . . . . . . . . Reused . | . . . . . . . . . Traps Extracted . | . . . . . . . . . Installed . | . . . . . . . . . Triggered . | . . . . . . . . . Machines | -11 -10 -10 -9 -9 -9 -8 -8 -7 ---------- Run | Yrd Mat Min Mat Min Exi Min Mat Fac Machines Disabled 3 | . . 1 1 . . . . 1 Max in Single Turn 1 | . . 1 1 . . . . 1 Garrison Access 1 | . . . . . . . . 1 Machines Repaired . | . . . . . . . . . Machines Dismantled . | . . . . . . . . . Machines Sabotaged . | . . . . . . . . . Overloaded Fab Kills . | . . . . . . . . . Hacking | -11 -10 -10 -9 -9 -9 -8 -8 -7 --------- Run | Yrd Mat Min Mat Min Exi Min Mat Fac Machines Accessed 13 | . 3 . 4 . 3 . 2 1 Terminals 8 | . 3 . 3 . . . 2 . Fabricators . | . . . . . . . . . Repair Stations . | . . . . . . . . . Recycling Units . | . . . . . . . . . Scanalyzers 1 | . . . 1 . . . . . Garrison Access 1 | . . . . . . . . 1 Total Hacks 27 | . 6 . 8 . 3 . 9 1 Successful 15 | . 3 . 5 . 3 . 3 1 Failed 12 | . 3 . 3 . . . 6 . Catastrophic 4 | . 1 . 1 . . . 2 . Database Lockouts . | . . . . . . . . . Manual 7 | . 1 . 1 . . . 5 . Terminals 21 | . 6 . 6 . . . 9 . Fabricators . | . . . . . . . . . Repair Stations . | . . . . . . . . . Recycling Units . | . . . . . . . . . Scanalyzers 2 | . . . 2 . . . . . Garrison Access 1 | . . . . . . . . 1 Terminal Hacks 12 | . 3 . 3 . 3 . 3 . Record 3 | . . . . . 3 . . . Part Schematic 1 | . . . 1 . . . . . Prototype ID Bank 5 | . 2 . 1 . . . 2 . Hauler Manifests 2 | . . . 1 . . . 1 . Registered Components 1 | . 1 . . . . . . . Fabricator Hacks . | . . . . . . . . . Repair Station Hacks . | . . . . . . . . . Recycling Unit Hacks . | . . . . . . . . . Scanalyzer 2 | . . . 2 . . . . . Insert Component 1 | . . . 1 . . . . . Analyze 1 | . . . 1 . . . . . Garrison Access Hacks 1 | . . . . . . . . 1 Seal Access 1 | . . . . . . . . 1 Unauthorized Hacks . | . . . . . . . . . Terminals . | . . . . . . . . . Fabricators . | . . . . . . . . . Repair Stations . | . . . . . . . . . Recycling Units . | . . . . . . . . . Scanalyzers . | . . . . . . . . . Garrison Access . | . . . . . . . . . Data Cores Recovered . | . . . . . . . . . Used . | . . . . . . . . . Hacking Detections 8 | . 3 . 3 . . . 2 . Full Trace Events 1 | . . . . . . . 1 . Feedback Events . | . . . . . . . . . Feedback Blocked . | . . . . . . . . . Robot Schematics Acquired . | . . . . . . . . . Robots Built . | . . . . . . . . . Authchips . | . . . . . . . . . Time . | . . . . . . . . . Total Robot Build Rating . | . . . . . . . . . Part Schematics Acquired 1 | . . . 1 . . . . . Parts Built . | . . . . . . . . . Authchips . | . . . . . . . . . Time . | . . . . . . . . . Total Part Build Rating . | . . . . . . . . . Parts Repaired . | . . . . . . . . . Time . | . . . . . . . . . Parts Recycled . | . . . . . . . . . Recycled Matter . | . . . . . . . . . Retrieved Matter . | . . . . . . . . . Retrieved Components . | . . . . . . . . . Parts Scanalyzed 1 | . . . 1 . . . . . Part Schematics Acquired 1 | . . . 1 . . . . . Parts Damaged . | . . . . . . . . . Bothacking | -11 -10 -10 -9 -9 -9 -8 -8 -7 ------------ Run | Yrd Mat Min Mat Min Exi Min Mat Fac Used RIF Installer . | . . . . . . . . . Robots Hacked 1 | . . . 1 . . . . . Non-combat 1 | . . . 1 . . . . . Combat . | . . . . . . . . . Robot Hacks Applied 1 | . . . 1 . . . . . parse_system 1 | . . . 1 . . . . . Relay Couplers Released . | . . . . . . . . . Fabnet Peak Effective % . | . . . . . . . . . Robots Rewired . | . . . . . . . . . Allies Hacked . | . . . . . . . . . Hacks Repelled . | . . . . . . . . . Allies | -11 -10 -10 -9 -9 -9 -8 -8 -7 -------- Run | Yrd Mat Min Mat Min Exi Min Mat Fac Total Allies 4 | . . 3 . 1 . . . . Largest Group 3 | . . 3 . 1 1 . . . Highest-Rated Group 40 | . . 40 . 31 31 . . . Highest-Rated Ally 31 | . . 16 . 31 31 . . . Total Orders . | . . . . . . . . . Ally Attacks 13 | . . 13 . . . . . . Total Damage 166 | . . 166 . . . . . . Kills 2 | . . 2 . . . . . . Allies Corrupted . | . . . . . . . . . Allies Melted . | . . . . . . . . . Intel | -11 -10 -10 -9 -9 -9 -8 -8 -7 ------- Run | Yrd Mat Min Mat Min Exi Min Mat Fac Active Infowar (turns) 1759 | . . . 204 . . . 274 1281 Optics 1555 | . . . . . . . 274 1281 Seismic 204 | . . . 204 . . . . . Robot Analysis Total . | . . . . . . . . . Derelict Logs Recovered 3 | . . 3 . . . . . . Drone Launches . | . . . . . . . . . Drone Recoveries . | . . . . . . . . . Exploration | -11 -10 -10 -9 -9 -9 -8 -8 -7 ------------- Run | Yrd Mat Min Mat Min Exi Min Mat Fac Turns Passed 4918 | 49 215 582 925 165 800 381 520 1281 Spaces Moved 2968 | 42 181 393 422 106 572 254 424 574 Core 335 | 1 . . . . . . 200 134 Treads 102 | . . . . . . . 41 61 Legs . | . . . . . . . . . Wheels 2441 | 41 181 393 422 106 572 254 93 379 Hover 8 | . . . . . . . 8 . Flight 82 | . . . . . . . 82 . Fastest Speed 35 | 50 90 90 80 140 140 140 35 50 Average Speed 137 | 89 90 127 147 140 140 149 91 180 Slowest Speed 480 | 100 90 200 215 140 140 155 240 480 Overloaded Moves . | . . . . . . . . . Propulsion Burnouts . | . . . . . . . . . Robots Hopped . | . . . . . . . . . Potential Cave-ins . | . . . . . . . . . Cave-ins Triggered . | . . . . . . . . . Exploration Rate (%) 45 | 4 41 75 38 17 91 69 57 20 Regions Visited 8 Branch Regions 4 Pre-discovered Areas . | . . . . . . . . . Known Exits Taken 2 | . . . 1 . 1 . . . Unknown Exits Taken 6 | 1 1 1 . 1 . 1 1 . Scrap Searched 1 | . . 1 . . . . . . Spaces Dug 9 | . . . 6 . . . . 3 Terrain Destroyed 186 | . . 107 64 . . . 7 8 Melee 2 | . . . . . . . . 2 Projectile 13 | . . . . . . . 7 6 AOE 171 | . . 107 64 . . . . . Terrain Rammed . | . . . . . . . . . Walls Destroyed . | . . . . . . . . . Machines Disabled . | . . . . . . . . . Actions | -11 -10 -10 -9 -9 -9 -8 -8 -7 --------- Run | Yrd Mat Min Mat Min Exi Min Mat Fac Total 3436 | 49 210 431 595 111 571 254 507 708 Wait 79 | . 6 . 38 . . . 6 29 Move 2960 | 41 180 392 421 105 571 253 423 574 Hop . | . . . . . . . . . Pick Up 66 | 1 8 3 25 . . . 12 17 Fast Attach 30 | 6 1 3 5 . . . 10 5 Attach 24 | . . . 8 . . . 5 11 Detach 1 | . . . . . . . 1 . Swap 52 | 1 2 12 15 . . 1 5 16 Drop 18 | . 1 2 6 . . . 8 1 Fire 189 | . 12 19 76 6 . . 28 48 Melee 11 | . . . 1 . . . 3 7 Ram 6 | . . . . . . . 6 . Kick . | . . . . . . . . . Crush . | . . . . . . . . . Escape Stasis . | . . . . . . . . . Rewire . | . . . . . . . . . Trap . | . . . . . . . . . Miscellaneous . | . . . . . . . . . Route ------- -11/Scrapyard -10/Materials -10/Mines -9/Materials (discovered 2 exits: *Min / [*Sto]) -9/Mines (discovered 3 exits: *Mat x2 / *Exi) -9/Exiles (discovered 2 exits: *Min x2) -8/Mines -8/Materials -7/Factory (discovered 1 exit: [*Fac]) History --------- Turn | Location | Event 2 | -11/Scrapyard | Met Revision 17 13 | -11/Scrapyard | Discovered new exit (range 16) 50 | -11/Scrapyard | Entered Materials 250 | -10/Materials | Discovered new exit (range 15) 265 | -10/Materials | Entered Mines 316 | -10/Mines | Build established: Mutant 334 | -10/Mines | Learned Materials interactive machine intel 342 | -10/Mines | Assisted by bots powering up and referring to "LRC-V3" 442 | -10/Mines | Assembled infested the area 447 | -10/Mines | Assisted by a Guerilla fighting off Assembled 457 | -10/Mines | Learned Materials emergency access door positions 502 | -10/Mines | Lost 4 allies 820 | -10/Mines | Discovered new exit (range 8) 847 | -10/Mines | Entered Materials 847 | -9/Materials | Evolved 2 slots: Utility x2 848 | -9/Materials | Identified exit to Mines 850 | -9/Materials | Loaded intel: 17 interactive machine locations 1114 | -9/Materials | Lost 5 parts (1n2u2w) 1210 | -9/Materials | Discovered new exit (range 15) 1320 | -9/Materials | Lost 3 parts (1n2w) 1772 | -9/Materials | Entered Mines 1778 | -9/Mines | Discovered new exit (range 5) 1835 | -9/Mines | Discovered new exit (range 6) 1912 | -9/Mines | Discovered new exit (range 8) 1915 | -9/Mines | Received a Mining Laser from a helpful Derelict 1926 | -9/Mines | Deemed a non-threat by the Exiles lab entrance 1937 | -9/Mines | Entered Exiles 1937 | -9/Exiles | Found Exiles lab abandoned 1937 | -9/Exiles | Accompanied by 1 ally 1938 | -9/Exiles | Identified exit to Mines 1956 | -9/Exiles | Discovered exit to Mines (range 15) 2737 | -9/Exiles | Entered Mines 3107 | -8/Mines | Discovered new exit (range 8) 3118 | -8/Mines | Entered Materials 3118 | -8/Materials | Evolved 2 slots: Utility x1, Weapon x1 3344 | -8/Materials | Released all parts (6) 3375 | -8/Materials | Lost 7 parts (1p5u1w) 3492 | -8/Materials | Discovered new exit (range 20) 3586 | -8/Materials | Core integrity fell below 50% 3638 | -8/Materials | Entered Factory 3638 | -7/Factory | Evolved 2 slots: Propulsion x1, Utility x1 3807 | -7/Factory | Discovered new exit (range 18) 3870 | -7/Factory | Build established: Tank 4456 | -7/Factory | Build established: Gunner 4757 | -7/Factory | Cargo convoy interrupted 4830 | -7/Factory | Core integrity fell below 50% 4849 | -7/Factory | System corruption reached 10% 4861 | -7/Factory | Core integrity fell below 20% 4869 | -7/Factory | Lost 18 parts (2p6n4u6w) 4919 | -7/Factory | Destroyed by Y-54 Guardian with Gatling Laser Last Messages --------------- 04838_ Particle Cannon crushed and broken. 04838_ Wheel crushed and broken. 04838_ Lgt. Nuclear Core crushed and broken. 04843_ Penetrated by Slug. 04858_ System corrupted: Hvy. Flail rejected. 04858_ Slug penetrates Wall. 04858_ X-57 Shotgunner destroyed. 04860_ Slug penetrates Wall. 04860_ Penetrated by Slug. 04861_ K-01 Serf collects debris. 04864_ K-01 Serf cleans the Fabricator. 04865_ K-01 Serf collects debris. 04872_ K-01 Serf cleans the Fabricator. 04877_ K-01 Serf cleans the Megafabricator. 04891_ O7 :DSBH7>Q2UX19 BZQC,WWTL:#SCSGBFFC6O 04899_ Acquired Prototype Flight Unit. 04899_ Identified Imp. Cesium-ion Thruster. 04899_ Faulty integration damages Hacking Suite (-6). 04906_ K-01 Serf cleans the Power Conduit. Map ----- +----------------------------------------------------+ | ???????# #?? " " " " " " " | | #?##???# #?? " " " " " " " | | # ??# #?? " " " " " " " | | # ""??# #?? | | # """?# #??# " " " " " " " " " | | # R"?# #??# " " " " " " " " " | | # """ # #### " " " " " " " " " | | # # " " " " " " " " " | | # """" + " " " " " " " " " | | # """" # " " " " " " " " " | | # """" ### " " " " " " " " " # | | # """"???# " " " " " " " " " # | | # """"???# " " " " " " " " " # | | # """??### # | | ? ??# # | | ######## # | | # ]# ######## # | | # # u #??????# # | | # # ###############??????# # | | # + #????????????????????# # | | # !! # #???????????##########+# | | # !! # #???????????# | | # !! # #???????????# | | # # #???????????# | | # # k #???????????# | | # """ # @#???????????# """ """ | | # """ # #???????????# """ """ | | # """ # #???????????# """ """ | | # # #???????????# | | ######## #???????????# """ """ | | ???????# #???????????# """ """ | | ???????# #???????????# """ """ | | ??????? ???????????# | | ??????? ???????????#######+#### | | ?????? !??????????????# | | ?????? Y ??????????????# | | ?????# ??????????????# | | ?????# ??????????????# | | ?????# ??????????????# | | ?????#######??????????????######### | | ??????????????????????????????????? | | ??????????????????????????????????? | | ??????????????????????????????????? | | ??????????????????????????????????? | | ??????????????????????????????????? | | ??????????????????????????????????? | | ??????????????????????????????????? | | ??????????????????????????????????? | | ??????????????????????????????????? | | ??????????????????????????????????? | +----------------------------------------------------+ Best States ------------- Heat Dissipation 51 Energy Generation 15 Energy Capacity 280 Matter Stores 300 Matter Capacity 300 Sight Range 20 Terrain Scan Density 10 Armor Coverage 600 Core Shielding 20 Evasion (%) 63 Targeting Accuracy 5 Recoil Reduction 1 Particle Charging 15 Offensive Hacking 10 Item Schematics ----------------- Huge Storage Unit | -9/Materials | Scanalyzed Robot Schematics ------------------ None Fabricated ------------ Nothing Repaired ---------- Nothing Alien Tech Used ----------------- None Achievements -------------- None Challenges ------------ None Game ------ Seed AutogunTransportGenerator Manual? 0 Play Time 00:54:15 Cumulative 65.4 hours Start 2025.09.22 @ 14:49:52 End 2025.09.22 @ 16:09:11 Sessions 1 Manual Loads 0 Difficulty Rogue Special Mode None Game No. 44 Rogue 44 Adventurer 0 Explorer 0 Win Type - Total 0 Types 0/0/0/0/0/0/0/0/0/0 Lore% 24 Gallery% 39 Achievement% 36 Wizard Run 0 Options --------- Layout 1 ASCII 0 Keyboard 1 Movement Arrows Keybinds 0 Fullscreen 1 Font 24/Smallcaps Map View 50x35 Zoom Use 0% Tactical HUD 1 Map Filters NONE Filters NONE Steam 1 RUN: 6425a63d-5ed5-4e6c-b45e-09fac41fa3a8